[Event "Early-Titled-Tuesday-Blitz-January-23-2024"]
[Site "Chess.com"]
[Date "2024.01.23"]
[Round "9"]
[White "Zallio"]
[Black "UK_23"]
[Result "0-1"]
[WhiteElo "2205"]
[BlackElo "2389"]
[TimeControl "180+1"]
[EndTime "9:43:53 PST"]
[Termination "UK_23 won by resignation"]

1. e4 {[%clk 0:03:00.9]} 1... e5 {[%clk 0:02:59.8]} 2. Nf3 {[%clk 0:03:00.6]}
2... Nc6 {[%clk 0:02:57.6]} 3. Bb5 {[%clk 0:02:52.6]} 3... a6 {[%clk 0:02:56.4]}
4. Ba4 {[%clk 0:02:45.5]} 4... Nf6 {[%clk 0:02:55.9]} 5. O-O {[%clk 0:02:40.9]}
5... Be7 {[%clk 0:02:50.8]} 6. Re1 {[%clk 0:02:37.7]} 6... b5 {[%clk 0:02:44.2]}
7. Bb3 {[%clk 0:02:37.4]} 7... d6 {[%clk 0:02:44.8]} 8. h3 {[%clk 0:02:33.6]}
8... O-O {[%clk 0:02:44.5]} 9. c3 {[%clk 0:02:31.1]} 9... Nb8 {[%clk 0:02:44.2]}
10. d4 {[%clk 0:02:28.7]} 10... Nbd7 {[%clk 0:02:44.8]} 11. a4 {[%clk
0:02:26.3]} 11... Bb7 {[%clk 0:02:44.5]} 12. Nbd2 {[%clk 0:02:22.3]} 12... Re8
{[%clk 0:02:42.7]} 13. Qc2 {[%clk 0:02:12.1]} 13... c5 {[%clk 0:02:35.6]} 14.
dxe5 {[%clk 0:02:06.5]} 14... dxe5 {[%clk 0:02:35.6]} 15. axb5 {[%clk
0:02:04.9]} 15... axb5 {[%clk 0:02:35.2]} 16. Rxa8 {[%clk 0:02:05.5]} 16... Qxa8
{[%clk 0:02:35.9]} 17. c4 {[%clk 0:01:56.1]} 17... b4 {[%clk 0:02:30.7]} 18. Ba4
{[%clk 0:01:55.3]} 18... Rd8 {[%clk 0:02:26.4]} 19. Bxd7 {[%clk 0:01:51.7]}
19... Nxd7 {[%clk 0:02:25.7]} 20. b3 {[%clk 0:01:46.3]} 20... f6 {[%clk
0:02:24.1]} 21. Bb2 {[%clk 0:01:43.1]} 21... Nf8 {[%clk 0:02:23.4]} 22. Ra1
{[%clk 0:01:41.9]} 22... Qb8 {[%clk 0:02:22]} 23. Nf1 {[%clk 0:01:39.5]} 23...
Ne6 {[%clk 0:02:22.2]} 24. Nh4 {[%clk 0:01:38.3]} 24... g6 {[%clk 0:02:22.4]}
25. Ne3 {[%clk 0:01:35.8]} 25... Nd4 {[%clk 0:02:15.3]} 26. Bxd4 {[%clk
0:01:30.2]} 26... exd4 {[%clk 0:02:09.7]} 27. Nd5 {[%clk 0:01:27.4]} 27... Bxd5
{[%clk 0:02:06.3]} 28. exd5 {[%clk 0:01:26.5]} 28... f5 {[%clk 0:02:03.9]} 29.
Nf3 {[%clk 0:01:26.3]} 29... Bf6 {[%clk 0:02:04.6]} 30. Ra6 {[%clk 0:01:23.1]}
30... Bg7 {[%clk 0:02:02]} 31. Qa2 {[%clk 0:01:18.6]} 31... Qf4 {[%clk
0:01:59.1]} 32. Ra8 {[%clk 0:01:12]} 32... Rf8 {[%clk 0:01:53.3]} 33. Qa6 {[%clk
0:01:08]} 33... Qc1+ {[%clk 0:01:42]} 34. Kh2 {[%clk 0:01:06.3]} 34... Qf4+
{[%clk 0:01:42.7]} 35. Kg1 {[%clk 0:01:06.5]} 35... Qe4 {[%clk 0:01:34.3]} 36.
Ng5 {[%clk 0:00:54.2]} 36... Qe1+ {[%clk 0:01:30.8]} 37. Kh2 {[%clk 0:00:54.1]}
37... Be5+ {[%clk 0:01:28.8]} 38. g3 {[%clk 0:00:48.8]} 38... Qxf2+ {[%clk
0:01:28.2]} 39. Kh1 {[%clk 0:00:47.6]} 39... Qe1+ {[%clk 0:01:23.2]} 0-1

[Event "Early-Titled-Tuesday-Blitz-January-23-2024"]
[Site "Chess.com"]
[Date "2024.01.23"]
[Round "9"]
[White "Sargsyan_Shant"]
[Black "Flawless_Fighter"]
[Result "1-0"]
[WhiteElo "2908"]
[BlackElo "2727"]
[TimeControl "180+1"]
[EndTime "9:43:54 PST"]
[Termination "Sargsyan_Shant won by resignation"]

1. c4 {[%clk 0:02:59.5]} 1... e6 {[%clk 0:02:59.3]} 2. g3 {[%clk 0:02:59.5]}
2... d5 {[%clk 0:03:00.2]} 3. Bg2 {[%clk 0:03:00.4]} 3... Nf6 {[%clk 0:03:00.2]}
4. Nf3 {[%clk 0:03:00.5]} 4... Be7 {[%clk 0:03:00.7]} 5. O-O {[%clk 0:03:00.2]}
5... O-O {[%clk 0:03:01.3]} 6. b3 {[%clk 0:03:00.7]} 6... b6 {[%clk 0:03:00.2]}
7. Ne5 {[%clk 0:02:59]} 7... Bb7 {[%clk 0:03:00.1]} 8. d4 {[%clk 0:02:59.5]}
8... c6 {[%clk 0:02:57]} 9. Nc3 {[%clk 0:02:58.7]} 9... Nbd7 {[%clk 0:02:54]}
10. Bf4 {[%clk 0:02:58.8]} 10... Rc8 {[%clk 0:02:53.1]} 11. Qd3 {[%clk
0:02:56.1]} 11... Nxe5 {[%clk 0:02:42.8]} 12. Bxe5 {[%clk 0:02:55.8]} 12... Qd7
{[%clk 0:02:19.6]} 13. Rfd1 {[%clk 0:02:53.4]} 13... Rfd8 {[%clk 0:02:19.2]} 14.
Rac1 {[%clk 0:02:48]} 14... h6 {[%clk 0:02:17.9]} 15. h3 {[%clk 0:02:47.5]}
15... Ba8 {[%clk 0:02:00.3]} 16. e3 {[%clk 0:02:45.8]} 16... Qe8 {[%clk
0:01:49.5]} 17. cxd5 {[%clk 0:02:39.6]} 17... cxd5 {[%clk 0:01:47.1]} 18. Qa6
{[%clk 0:02:39.8]} 18... Qd7 {[%clk 0:01:45]} 19. Bf1 {[%clk 0:02:36.9]} 19...
Ne8 {[%clk 0:01:30.4]} 20. g4 {[%clk 0:02:23.2]} 20... Nd6 {[%clk 0:01:18.4]}
21. Nb5 {[%clk 0:02:13.6]} 21... Nxb5 {[%clk 0:01:10.1]} 22. Bxb5 {[%clk
0:02:13.5]} 22... Qb7 {[%clk 0:01:10.2]} 23. Bg3 {[%clk 0:02:06.7]} 23... Bb4
{[%clk 0:00:58.6]} 24. Kg2 {[%clk 0:02:00]} 24... Kf8 {[%clk 0:00:55.2]} 25. a3
{[%clk 0:01:53.7]} 25... Be7 {[%clk 0:00:42.4]} 26. b4 {[%clk 0:01:52]} 26... f6
{[%clk 0:00:37.9]} 27. h4 {[%clk 0:01:50.7]} 27... Kf7 {[%clk 0:00:38.1]} 28. h5
{[%clk 0:01:51.1]} 28... Bf8 {[%clk 0:00:28.4]} 29. Bd3 {[%clk 0:01:50.3]} 29...
Be7 {[%clk 0:00:27.6]} 30. Qa4 {[%clk 0:01:46.4]} 30... Rxc1 {[%clk 0:00:13]}
31. Rxc1 {[%clk 0:01:46.3]} 31... Bd6 {[%clk 0:00:13.5]} 32. Bxd6 {[%clk
0:01:44.5]} 32... Rxd6 {[%clk 0:00:14.1]} 33. Bg6+ {[%clk 0:01:44.9]} 1-0

[Event "Early-Titled-Tuesday-Blitz-January-23-2024"]
[Site "Chess.com"]
[Date "2024.01.23"]
[Round "9"]
[White "Licancabur"]
[Black "secretsuperstar7"]
[Result "0-1"]
[WhiteElo "2457"]
[BlackElo "2514"]
[TimeControl "180+1"]
[EndTime "9:44:01 PST"]
[Termination "secretsuperstar7 won on time"]

1. Nf3 {[%clk 0:03:00.9]} 1... d5 {[%clk 0:02:57.9]} 2. b3 {[%clk 0:02:58.9]}
2... c5 {[%clk 0:02:58]} 3. Bb2 {[%clk 0:02:58.5]} 3... Nc6 {[%clk 0:02:58.3]}
4. e3 {[%clk 0:02:58.1]} 4... Nf6 {[%clk 0:02:58.4]} 5. Bb5 {[%clk 0:02:49]}
5... Bd7 {[%clk 0:02:58.3]} 6. O-O {[%clk 0:02:46.7]} 6... e6 {[%clk 0:02:58.4]}
7. d3 {[%clk 0:02:41.1]} 7... Be7 {[%clk 0:02:57.1]} 8. Nbd2 {[%clk 0:02:39]}
8... O-O {[%clk 0:02:57.1]} 9. Bxc6 {[%clk 0:02:27.6]} 9... Bxc6 {[%clk
0:02:57]} 10. Ne5 {[%clk 0:02:28.1]} 10... Rc8 {[%clk 0:02:56.4]} 11. f4 {[%clk
0:02:24.7]} 11... b5 {[%clk 0:02:53]} 12. a4 {[%clk 0:02:18.3]} 12... bxa4
{[%clk 0:02:51.5]} 13. Nxc6 {[%clk 0:02:18.3]} 13... Rxc6 {[%clk 0:02:51.1]} 14.
Rxa4 {[%clk 0:02:18.9]} 14... Qb6 {[%clk 0:02:50]} 15. Nf3 {[%clk 0:02:09.3]}
15... c4 {[%clk 0:02:46.9]} 16. Bd4 {[%clk 0:01:21.9]} 16... Bc5 {[%clk
0:02:44.3]} 17. b4 {[%clk 0:01:10.9]} 17... Bxd4 {[%clk 0:02:40.8]} 18. Nxd4
{[%clk 0:01:11.1]} 18... Rc7 {[%clk 0:02:39.5]} 19. b5 {[%clk 0:01:07.9]} 19...
cxd3 {[%clk 0:02:32.4]} 20. cxd3 {[%clk 0:01:06.5]} 20... Rfc8 {[%clk
0:02:27.9]} 21. h3 {[%clk 0:00:56.6]} 21... h6 {[%clk 0:02:25.1]} 22. Qa1 {[%clk
0:00:55.7]} 22... Rc3 {[%clk 0:02:22.6]} 23. Nc6 {[%clk 0:00:39.8]} 23... Qxe3+
{[%clk 0:02:19.9]} 24. Kh1 {[%clk 0:00:39]} 24... Nh5 {[%clk 0:01:56]} 25. Qxc3
{[%clk 0:00:18.2]} 25... Ng3+ {[%clk 0:01:54.5]} 26. Kh2 {[%clk 0:00:18.9]}
26... Nxf1+ {[%clk 0:01:54.4]} 27. Kh1 {[%clk 0:00:19.6]} 27... Ng3+ {[%clk
0:01:47]} 28. Kh2 {[%clk 0:00:19.6]} 28... Qxf4 {[%clk 0:01:39.3]} 29. Ne7+
{[%clk 0:00:10.9]} 29... Kh7 {[%clk 0:01:39]} 30. Qxc8 {[%clk 0:00:10.1]} 30...
Ne2+ {[%clk 0:01:37.9]} 31. Kh1 {[%clk 0:00:10]} 31... Qf1+ {[%clk 0:01:37.7]}
0-1

[Event "Early-Titled-Tuesday-Blitz-January-23-2024"]
[Site "Chess.com"]
[Date "2024.01.23"]
[Round "9"]
[White "yobdc"]
[Black "Druid24"]
[Result "0-1"]
[WhiteElo "2533"]
[BlackElo "2706"]
[TimeControl "180+1"]
[EndTime "9:44:06 PST"]
[Termination "Druid24 won on time"]

1. d4 {[%clk 0:03:00.9]} 1... d5 {[%clk 0:02:59.5]} 2. c4 {[%clk 0:03:00.9]}
2... e6 {[%clk 0:03:00.2]} 3. Nc3 {[%clk 0:03:00.9]} 3... Nf6 {[%clk 0:02:59.5]}
4. cxd5 {[%clk 0:03:01.2]} 4... exd5 {[%clk 0:03:00.4]} 5. Bg5 {[%clk
0:03:00.8]} 5... Be7 {[%clk 0:03:00.2]} 6. e3 {[%clk 0:03:01.1]} 6... c6 {[%clk
0:03:00.4]} 7. Bd3 {[%clk 0:03:01.3]} 7... O-O {[%clk 0:03:00.6]} 8. Qc2 {[%clk
0:03:01.4]} 8... Nbd7 {[%clk 0:02:58.8]} 9. Nf3 {[%clk 0:03:01.1]} 9... Re8
{[%clk 0:02:57.2]} 10. O-O {[%clk 0:02:52.2]} 10... Nf8 {[%clk 0:02:57.1]} 11.
h3 {[%clk 0:02:52.1]} 11... g6 {[%clk 0:02:51.5]} 12. Rab1 {[%clk 0:02:50.7]}
12... Ne6 {[%clk 0:02:44.4]} 13. Bh4 {[%clk 0:02:49.4]} 13... Nh5 {[%clk
0:02:31.3]} 14. Bxe7 {[%clk 0:02:48]} 14... Qxe7 {[%clk 0:02:32.2]} 15. b4
{[%clk 0:02:45.2]} 15... Ng5 {[%clk 0:02:28.5]} 16. Ne5 {[%clk 0:02:20.1]} 16...
Bxh3 {[%clk 0:02:26.2]} 17. f4 {[%clk 0:02:14]} 17... f6 {[%clk 0:02:08.6]} 18.
Bxg6 {[%clk 0:01:51.9]} 18... hxg6 {[%clk 0:01:54.4]} 19. Qxg6+ {[%clk
0:01:51.4]} 19... Ng7 {[%clk 0:01:54.1]} 20. gxh3 {[%clk 0:00:59.1]} 20... Nxh3+
{[%clk 0:01:51.9]} 21. Kg2 {[%clk 0:00:49.1]} 21... fxe5 {[%clk 0:01:52.8]} 22.
dxe5 {[%clk 0:00:23.5]} 22... Qh4 {[%clk 0:01:33.3]} 23. Rf3 {[%clk 0:00:23.3]}
23... Ng5 {[%clk 0:01:12.9]} 24. Rh1 {[%clk 0:00:17.8]} 24... Nxf3 {[%clk
0:01:11.5]} 0-1

[Event "Early-Titled-Tuesday-Blitz-January-23-2024"]
[Site "Chess.com"]
[Date "2024.01.23"]
[Round "9"]
[White "Boninknights"]
[Black "Smiechu"]
[Result "1-0"]
[WhiteElo "2355"]
[BlackElo "2468"]
[TimeControl "180+1"]
[EndTime "9:44:14 PST"]
[Termination "Boninknights won by checkmate"]

1. d4 {[%clk 0:02:59.7]} 1... Nf6 {[%clk 0:02:59.6]} 2. Nf3 {[%clk 0:02:59.3]}
2... c5 {[%clk 0:03:00.1]} 3. d5 {[%clk 0:02:58.2]} 3... e6 {[%clk 0:03:00.1]}
4. c4 {[%clk 0:02:57.2]} 4... exd5 {[%clk 0:02:59.7]} 5. cxd5 {[%clk 0:02:57.1]}
5... d6 {[%clk 0:03:00.4]} 6. Nc3 {[%clk 0:02:56.7]} 6... g6 {[%clk 0:03:01.1]}
7. Bg5 {[%clk 0:02:55.8]} 7... Bg7 {[%clk 0:03:01.4]} 8. Nd2 {[%clk 0:02:54.7]}
8... Nbd7 {[%clk 0:03:00.3]} 9. e4 {[%clk 0:02:53.5]} 9... O-O {[%clk
0:03:00.1]} 10. Be2 {[%clk 0:02:52.3]} 10... Re8 {[%clk 0:02:57.9]} 11. O-O
{[%clk 0:02:50.2]} 11... a6 {[%clk 0:02:57.7]} 12. a4 {[%clk 0:02:49.2]} 12...
Qc7 {[%clk 0:02:51.7]} 13. f4 {[%clk 0:02:47.8]} 13... Rb8 {[%clk 0:02:49.5]}
14. Kh1 {[%clk 0:02:44.6]} 14... c4 {[%clk 0:02:33.8]} 15. e5 {[%clk 0:02:40.6]}
15... dxe5 {[%clk 0:02:30.2]} 16. fxe5 {[%clk 0:02:39.7]} 16... Rxe5 {[%clk
0:01:51.1]} 17. Bf4 {[%clk 0:02:36.5]} 17... b5 {[%clk 0:01:50.8]} 18. axb5
{[%clk 0:02:31.8]} 18... axb5 {[%clk 0:01:50.5]} 19. Nf3 {[%clk 0:02:17.2]}
19... Ng4 {[%clk 0:01:37.3]} 20. Nxe5 {[%clk 0:01:57.3]} 20... Bxe5 {[%clk
0:01:22.6]} 21. d6 {[%clk 0:01:53.6]} 21... Qc5 {[%clk 0:00:37.5]} 22. Bxg4
{[%clk 0:01:46.6]} 22... f5 {[%clk 0:00:37]} 23. Bf3 {[%clk 0:01:31.9]} 23...
Bxf4 {[%clk 0:00:31.4]} 24. Bd5+ {[%clk 0:01:31.6]} 24... Kg7 {[%clk 0:00:31.7]}
25. Rxf4 {[%clk 0:01:30.5]} 25... Nf6 {[%clk 0:00:30]} 26. Qd4 {[%clk
0:01:24.4]} 26... Qxd6 {[%clk 0:00:23.4]} 27. Ra7+ {[%clk 0:01:19.9]} 27... Kf8
{[%clk 0:00:20.4]} 28. Ne4 {[%clk 0:01:10.5]} 28... Qxd5 {[%clk 0:00:09.7]} 29.
Qxf6+ {[%clk 0:01:09.1]} 29... Ke8 {[%clk 0:00:09.7]} 30. Qe7# {[%clk 0:01:09]}
1-0

[Event "Early-Titled-Tuesday-Blitz-January-23-2024"]
[Site "Chess.com"]
[Date "2024.01.23"]
[Round "9"]
[White "Natalya_Buksa"]
[Black "bubeliang"]
[Result "1-0"]
[WhiteElo "2610"]
[BlackElo "2788"]
[TimeControl "180+1"]
[EndTime "9:44:16 PST"]
[Termination "Natalya_Buksa won by checkmate"]

1. d4 {[%clk 0:03:00.9]} 1... b6 {[%clk 0:02:51.6]} 2. e4 {[%clk 0:02:59.8]}
2... Bb7 {[%clk 0:02:52.2]} 3. Nc3 {[%clk 0:03:00.3]} 3... e6 {[%clk 0:02:48.5]}
4. Nf3 {[%clk 0:02:59.5]} 4... Bb4 {[%clk 0:02:47.3]} 5. e5 {[%clk 0:02:53.9]}
5... f5 {[%clk 0:02:30.8]} 6. Bd2 {[%clk 0:02:50.1]} 6... Bxc3 {[%clk
0:02:27.2]} 7. Bxc3 {[%clk 0:02:50]} 7... Ne7 {[%clk 0:02:26]} 8. Bd3 {[%clk
0:02:43.2]} 8... O-O {[%clk 0:02:25.3]} 9. Bd2 {[%clk 0:02:43.4]} 9... Ng6
{[%clk 0:02:19.8]} 10. h4 {[%clk 0:02:42]} 10... d6 {[%clk 0:02:07.8]} 11. h5
{[%clk 0:02:40.6]} 11... Nh8 {[%clk 0:02:07.9]} 12. Qe2 {[%clk 0:02:31.6]} 12...
Bxf3 {[%clk 0:02:03.2]} 13. Qxf3 {[%clk 0:02:30.5]} 13... d5 {[%clk 0:02:03.2]}
14. g4 {[%clk 0:02:27.2]} 14... Nc6 {[%clk 0:01:57.1]} 15. c3 {[%clk 0:02:27]}
15... Ne7 {[%clk 0:01:57.2]} 16. O-O-O {[%clk 0:02:25.6]} 16... c5 {[%clk
0:01:54.3]} 17. Kb1 {[%clk 0:02:22.1]} 17... a5 {[%clk 0:01:43.3]} 18. Rdg1
{[%clk 0:02:21.2]} 18... f4 {[%clk 0:01:25.2]} 19. Bxf4 {[%clk 0:02:20.7]} 19...
g5 {[%clk 0:01:23.9]} 20. hxg6 {[%clk 0:02:20.7]} 20... Nexg6 {[%clk 0:01:01.4]}
21. Qh3 {[%clk 0:02:17.9]} 21... Qe7 {[%clk 0:00:53.3]} 22. Be3 {[%clk
0:02:17.5]} 22... c4 {[%clk 0:00:53.6]} 23. Bc2 {[%clk 0:02:14.9]} 23... b5
{[%clk 0:00:53.6]} 24. Bg5 {[%clk 0:01:59.2]} 24... Qb7 {[%clk 0:00:44.5]} 25.
f4 {[%clk 0:01:58.9]} 25... b4 {[%clk 0:00:26.7]} 26. f5 {[%clk 0:01:59]} 26...
bxc3 {[%clk 0:00:22.3]} 27. Qxc3 {[%clk 0:01:58.6]} 27... Ne7 {[%clk 0:00:21.9]}
28. Qh3 {[%clk 0:01:46.8]} 28... Nc6 {[%clk 0:00:19.7]} 29. fxe6 {[%clk
0:01:43.1]} 29... Rf2 {[%clk 0:00:08.5]} 30. Qxh7+ {[%clk 0:01:29.2]} 30... Qxh7
{[%clk 0:00:07.3]} 31. Bxh7+ {[%clk 0:01:29.6]} 31... Kg7 {[%clk 0:00:04.7]} 32.
Bf5 {[%clk 0:01:25.6]} 32... Nxd4 {[%clk 0:00:04.4]} 33. Bf6+ {[%clk 0:01:25.1]}
33... Kg8 {[%clk 0:00:03.4]} 34. Rxh8# {[%clk 0:01:24.3]} 1-0

[Event "Early-Titled-Tuesday-Blitz-January-23-2024"]
[Site "Chess.com"]
[Date "2024.01.23"]
[Round "9"]
[White "AsterPhoenix"]
[Black "Alexei_Kornev"]
[Result "1-0"]
[WhiteElo "2588"]
[BlackElo "2728"]
[TimeControl "180+1"]
[EndTime "9:44:19 PST"]
[Termination "AsterPhoenix won by resignation"]

1. e4 {[%clk 0:02:56.1]} 1... c5 {[%clk 0:02:59.7]} 2. Nf3 {[%clk 0:02:55.9]}
2... d6 {[%clk 0:02:59.9]} 3. d4 {[%clk 0:02:56.5]} 3... cxd4 {[%clk 0:03:00.8]}
4. Nxd4 {[%clk 0:02:57.3]} 4... Nf6 {[%clk 0:03:00.8]} 5. Nc3 {[%clk 0:02:57.7]}
5... a6 {[%clk 0:03:01.3]} 6. Be2 {[%clk 0:02:57.7]} 6... e5 {[%clk 0:03:00.9]}
7. Nb3 {[%clk 0:02:58.4]} 7... Be7 {[%clk 0:03:01.1]} 8. g4 {[%clk 0:02:58.8]}
8... Be6 {[%clk 0:02:57.6]} 9. g5 {[%clk 0:02:58.7]} 9... Nfd7 {[%clk
0:02:57.4]} 10. Bg4 {[%clk 0:02:59.3]} 10... Nc6 {[%clk 0:02:39.7]} 11. Bxe6
{[%clk 0:02:57.6]} 11... fxe6 {[%clk 0:02:40.6]} 12. Qh5+ {[%clk 0:02:56.2]}
12... g6 {[%clk 0:02:40]} 13. Qg4 {[%clk 0:02:57.1]} 13... Nf8 {[%clk
0:02:38.5]} 14. Be3 {[%clk 0:02:54.8]} 14... Qc7 {[%clk 0:02:32]} 15. O-O-O
{[%clk 0:02:52.1]} 15... O-O-O {[%clk 0:02:31.1]} 16. Nd5 {[%clk 0:02:50.2]}
16... Qb8 {[%clk 0:02:28.8]} 17. Nb6+ {[%clk 0:02:07.9]} 17... Kc7 {[%clk
0:02:26.2]} 18. Rd3 {[%clk 0:02:08.8]} 18... Re8 {[%clk 0:02:10.2]} 19. Rhd1
{[%clk 0:02:01.6]} 19... Qd8 {[%clk 0:02:09.3]} 20. Nc5 {[%clk 0:01:37]} 20...
Kb8 {[%clk 0:01:55.3]} 21. Nxe6 {[%clk 0:01:32.4]} 21... Nxe6 {[%clk 0:01:56.2]}
22. Qxe6 {[%clk 0:01:32.2]} 22... Bxg5 {[%clk 0:01:28.1]} 23. Qxd6+ {[%clk
0:01:27.5]} 23... Qxd6 {[%clk 0:01:27.4]} 24. Rxd6 {[%clk 0:01:28.4]} 24...
Bxe3+ {[%clk 0:01:26]} 25. fxe3 {[%clk 0:01:29.3]} 25... Ka7 {[%clk 0:01:22.5]}
26. Nd7 {[%clk 0:01:23.4]} 26... Re7 {[%clk 0:01:17.3]} 27. a4 {[%clk
0:01:05.9]} 27... Nd8 {[%clk 0:01:09.6]} 28. Nc5 {[%clk 0:00:50.5]} 28... Nf7
{[%clk 0:01:08.7]} 29. Rd7 {[%clk 0:00:49.9]} 29... Rhe8 {[%clk 0:01:04.1]} 30.
a5 {[%clk 0:00:49.9]} 30... Ng5 {[%clk 0:01:02.4]} 31. h4 {[%clk 0:00:44.3]}
31... Nf3 {[%clk 0:00:58.6]} 32. Nxb7 {[%clk 0:00:42.7]} 32... Nxh4 {[%clk
0:00:51]} 33. Nd8+ {[%clk 0:00:40.3]} 33... Ka8 {[%clk 0:00:49]} 34. Nc6 {[%clk
0:00:40.4]} 1-0

[Event "Early-Titled-Tuesday-Blitz-January-23-2024"]
[Site "Chess.com"]
[Date "2024.01.23"]
[Round "9"]
[White "Horokoskii"]
[Black "UnTucopalaTimba"]
[Result "1-0"]
[WhiteElo "2069"]
[BlackElo "1946"]
[TimeControl "180+1"]
[EndTime "9:44:19 PST"]
[Termination "Horokoskii won by resignation"]

1. d4 {[%clk 0:03:00.9]} 1... Nf6 {[%clk 0:02:59.1]} 2. c4 {[%clk 0:02:59.8]}
2... e6 {[%clk 0:02:59.1]} 3. Nf3 {[%clk 0:03:00.2]} 3... d5 {[%clk 0:02:58.7]}
4. g3 {[%clk 0:03:00.8]} 4... Be7 {[%clk 0:02:53.2]} 5. Bg2 {[%clk 0:03:01.1]}
5... O-O {[%clk 0:02:50.4]} 6. O-O {[%clk 0:03:01.7]} 6... dxc4 {[%clk
0:02:50.3]} 7. Ne5 {[%clk 0:03:02]} 7... c5 {[%clk 0:02:34.1]} 8. dxc5 {[%clk
0:02:49.4]} 8... Bxc5 {[%clk 0:02:24.4]} 9. Nc3 {[%clk 0:02:36.8]} 9... Qc7
{[%clk 0:02:14]} 10. Bf4 {[%clk 0:02:32.2]} 10... Nh5 {[%clk 0:01:42]} 11. Qc2
{[%clk 0:02:26.9]} 11... Nxf4 {[%clk 0:01:39.3]} 12. gxf4 {[%clk 0:02:26.5]}
12... Nd7 {[%clk 0:01:29.2]} 13. Nb5 {[%clk 0:01:56.9]} 13... Qa5 {[%clk
0:01:06.6]} 14. Qxc4 {[%clk 0:01:45.8]} 14... Nxe5 {[%clk 0:01:00.9]} 15. fxe5
{[%clk 0:01:45.3]} 15... Bd7 {[%clk 0:00:41.8]} 16. Qxc5 {[%clk 0:01:35]} 16...
Bxb5 {[%clk 0:00:36.8]} 17. a4 {[%clk 0:01:34.6]} 17... Rac8 {[%clk 0:00:27.6]}
18. Qxb5 {[%clk 0:01:34.4]} 18... Qd2 {[%clk 0:00:25.9]} 19. Rad1 {[%clk
0:01:26.9]} 19... Qg5 {[%clk 0:00:23.8]} 20. Rd3 {[%clk 0:01:14.9]} 20... Rc1
{[%clk 0:00:18.5]} 21. Rg3 {[%clk 0:01:08.6]} 21... Rxf1+ {[%clk 0:00:17.6]} 22.
Bxf1 {[%clk 0:01:09.5]} 22... Qc1 {[%clk 0:00:15.1]} 23. Qd3 {[%clk 0:00:47.4]}
1-0

[Event "Early-Titled-Tuesday-Blitz-January-23-2024"]
[Site "Chess.com"]
[Date "2024.01.23"]
[Round "9"]
[White "ErikRonka"]
[Black "FoxOnTheRun97"]
[Result "0-1"]
[WhiteElo "2487"]
[BlackElo "2609"]
[TimeControl "180+1"]
[EndTime "9:44:21 PST"]
[Termination "FoxOnTheRun97 won by resignation"]

1. e4 {[%clk 0:02:33.1]} 1... c6 {[%clk 0:02:57]} 2. d4 {[%clk 0:02:32.4]} 2...
d5 {[%clk 0:02:57.9]} 3. Nd2 {[%clk 0:02:32.9]} 3... dxe4 {[%clk 0:02:58]} 4.
Nxe4 {[%clk 0:02:33.8]} 4... Nf6 {[%clk 0:02:56.8]} 5. Nxf6+ {[%clk 0:02:34.3]}
5... exf6 {[%clk 0:02:57.7]} 6. c3 {[%clk 0:02:34.9]} 6... Bd6 {[%clk
0:02:57.5]} 7. Bd3 {[%clk 0:02:35.4]} 7... O-O {[%clk 0:02:55.1]} 8. Qc2 {[%clk
0:02:36.3]} 8... Re8+ {[%clk 0:02:54.9]} 9. Ne2 {[%clk 0:02:37.2]} 9... h5
{[%clk 0:02:55.1]} 10. O-O {[%clk 0:02:37.7]} 10... Nd7 {[%clk 0:02:52.6]} 11.
Ng3 {[%clk 0:02:31.4]} 11... Bxg3 {[%clk 0:02:38.7]} 12. hxg3 {[%clk 0:02:25.8]}
12... Nf8 {[%clk 0:02:37.3]} 13. Bd2 {[%clk 0:02:13.2]} 13... Bd7 {[%clk
0:02:14.6]} 14. Rfe1 {[%clk 0:02:12.2]} 14... Qc7 {[%clk 0:02:14.4]} 15. c4
{[%clk 0:02:07.4]} 15... Ne6 {[%clk 0:02:06.1]} 16. Bc3 {[%clk 0:02:04.7]} 16...
h4 {[%clk 0:01:57.2]} 17. gxh4 {[%clk 0:01:59.9]} 17... Qf4 {[%clk 0:01:56.6]}
18. Re4 {[%clk 0:01:46.2]} 18... Qd6 {[%clk 0:01:45.9]} 19. Rae1 {[%clk
0:01:35.1]} 19... f5 {[%clk 0:01:36.1]} 20. Re5 {[%clk 0:01:21.3]} 20... Nxd4
{[%clk 0:01:32.6]} 21. Rxe8+ {[%clk 0:01:02.5]} 21... Rxe8 {[%clk 0:01:33.5]}
22. Rxe8+ {[%clk 0:01:01.7]} 22... Bxe8 {[%clk 0:01:34.4]} 23. Bxd4 {[%clk
0:01:00.1]} 23... Qxd4 {[%clk 0:01:34]} 24. Bxf5 {[%clk 0:00:48.1]} 24... Qxh4
{[%clk 0:01:33.4]} 25. Qd3 {[%clk 0:00:47.4]} 25... Qe7 {[%clk 0:01:27]} 26. g3
{[%clk 0:00:45.3]} 26... f6 {[%clk 0:01:19.2]} 27. Kg2 {[%clk 0:00:42.1]} 27...
Bf7 {[%clk 0:01:17.9]} 28. b3 {[%clk 0:00:41.9]} 28... g5 {[%clk 0:01:13.6]} 29.
Bg4 {[%clk 0:00:38.8]} 29... Kg7 {[%clk 0:01:12.1]} 30. Bf5 {[%clk 0:00:38.9]}
30... a5 {[%clk 0:01:09.8]} 31. Qe4 {[%clk 0:00:29]} 31... Qc5 {[%clk
0:01:05.7]} 32. Qe3 {[%clk 0:00:16.1]} 32... Qxf5 {[%clk 0:01:04.6]} 0-1